fUST/lending_fUST_20250426
["ID","MTS","AMOUNT","RATE_DAILY","PERIOD"]
[358975408,1745596814488,303.45,0.00015,2]
[358975409,1745596908773,-300.0,0.00015436,2]
[358975410,1745596908796,-300.0,0.00015436,2]
[358975411,1745596908817,-248.6023329,0.00015436,2]
[358975412,1745596908839,-261.15286719,0.00015436,2]
[358975413,1745596908863,-239.33735911,0.00015436,2]
[358975414,1745596908885,-411.43150359,0.00015436,2]
[358975415,1745596908916,-16709.9767647,0.00015437,2]
[358975416,1745596908938,-250.0,0.00015505,2]
[358975417,1745596956632,171083.58495055,0.000159,2]
[358975421,1745597235109,-1663.06951476,0.00016315,2]
[358975422,1745597238152,-612.84951846,0.00016315,2]
[358975423,1745597238175,-196.79655691,0.00016338,2]
[358975424,1745597238195,-188.83545703,0.00016338,2]
[358975425,1745597332339,39977.32498427,0.000159,2]
[358975464,1745597432258,-4970.67501573,0.000159,2]
[358975465,1745597432268,-300.0,0.00016413,2]
[358975467,1745597432277,-706.0,0.00016415,2]
[358975469,1745597432287,-2247.0,0.00016415,2]
[358975471,1745597432297,-207.4,0.00016428,2]
[358975473,1745597432306,-1419.55,0.00016428,3]
[358975475,1745597432317,-709.78,0.00016428,3]
[358975477,1745597432326,-492.9,0.00016428,3]
[358975479,1745597432335,-246.45,0.00016428,3]
[358975480,1745597432344,-739.38,0.00016428,3]
[358975483,1745597432355,-355.61790042,0.00016436,2]
[358975485,1745597432364,-500.0,0.00016436,2]
[358975487,1745597432373,-500.0,0.00016436,2]
[358975489,1745597432383,-243.03507711,0.00016436,2]
[358975491,1745597432392,-273.76305188,0.00016436,2]
[358975493,1745597432401,-50000.0,0.00016437,2]
[358975495,1745597432411,-500.0,0.00016438,2]
[358975497,1745597432421,-516.06223484,0.00016438,2]
[358975499,1745597432431,-500.0,0.00016438,2]
[358975501,1745597432441,-500.0,0.00016438,2]
[358975503,1745597432451,-500.0,0.00016438,2]
[358975505,1745597432460,-500.0,0.00016438,2]
[358975506,1745597432471,-500.0,0.00016438,2]
[358975507,1745597432481,-500.0,0.00016438,2]
[358975508,1745597432490,-500.0,0.00016438,2]
[358975509,1745597432500,-500.0,0.00016438,2]
[358975510,1745597432510,-291.1852943,0.00016438,2]
[358975511,1745597432520,-500.0,0.00016438,2]
[358975512,1745597432705,-500.0,0.00016438,2]
[358975513,1745597432715,-500.0,0.00016438,2]
[358975514,1745597432725,-500.0,0.00016438,2]
[358975515,1745597432735,-500.0,0.00016438,2]
[358975516,1745597432744,-526.74,0.00016438,2]
[358975517,1745597432754,-500.0,0.00016438,2]
[358975518,1745597432763,-500.0,0.00016438,2]
[358975519,1745597432773,-297.29825574,0.00016438,2]
[358975520,1745597432783,-542.1,0.00016438,2]
[358975521,1745597432794,-500.0,0.00016438,2]
[358975522,1745597432804,-500.0,0.00016438,2]
[358975523,1745597432813,-500.0,0.00016438,2]
[358975524,1745597432823,-500.0,0.00016438,2]
[358975525,1745597432833,-500.0,0.00016438,2]
[358975526,1745597432843,-621.78821676,0.00016438,2]
[358975527,1745597432852,-500.0,0.00016438,2]
[358975528,1745597432862,-500.0,0.00016438,2]
[358975530,1745597432871,-500.0,0.00016438,2]
[358975532,1745597432881,-500.0,0.00016438,2]
[358975534,1745597432890,-281.57149072,0.00016438,2]
[358975535,1745597432906,-218.42850928,0.00016438,2]
[358975536,1745597432915,-500.0,0.00016438,2]
[358975537,1745597432924,-500.0,0.00016438,2]
[358975538,1745597432934,-500.0,0.00016438,2]
[358975539,1745597432944,-500.0,0.00016438,2]
[358975540,1745597432953,-500.0,0.00016438,2]
[358975541,1745597432962,-500.0,0.00016438,2]
[358975542,1745597432973,-500.0,0.00016438,2]
[358975543,1745597432983,-500.0,0.00016438,2]
[358975544,1745597432993,-500.0,0.00016438,2]
[358975545,1745597433002,-500.0,0.00016438,2]
[358975546,1745597433012,-500.0,0.00016438,2]
[358975547,1745597433021,-500.0,0.00016438,2]
[358975548,1745597433031,-500.0,0.00016438,2]
[358975549,1745597433042,-500.0,0.00016438,2]
[358975550,1745597433053,-500.0,0.00016438,2]
[358975551,1745597433062,-500.0,0.00016438,2]
[358975552,1745597433072,-500.0,0.00016438,2]
[358975553,1745597433083,-181.91013188,0.00016438,2]
[358975554,1745597433093,-500.0,0.00016438,2]
[358975555,1745597433102,-500.0,0.00016438,2]
[358975556,1745597433112,-500.0,0.00016438,2]
[358975557,1745597433123,-500.0,0.00016438,2]
[358975558,1745597433133,-500.0,0.00016438,2]
[358975559,1745597433142,-500.0,0.00016438,2]
[358975560,1745597433152,-500.0,0.00016438,2]
[358975561,1745597433161,-500.0,0.00016438,2]
[358975562,1745597433171,-500.0,0.00016438,2]
[358975563,1745597433180,-500.0,0.00016438,2]
[358975564,1745597433190,-500.0,0.00016438,2]
[358975565,1745597433199,-500.0,0.00016438,2]
[358975566,1745597433208,-500.0,0.00016438,2]
[358975567,1745597433220,-382.1314834,0.00016438,2]
[358975568,1745597433230,-500.0,0.00016438,2]
[358975569,1745597433239,-500.0,0.00016438,2]
[358975570,1745597433249,-34.56571924,0.00016438,2]
[358975598,1745597438243,-500.0,0.00015899,2]
[358975601,1745597438253,-295.10922672,0.00015899,2]
[358975604,1745597438263,-420.57077328,0.00015899,2]
[358975606,1745597438272,-500.0,0.00015899,2]
[358975608,1745597438282,-270.57428076,0.00016438,2]
[358975609,1745597438291,-732.91,0.00016438,2]
[358975610,1745597438300,-487.76869511,0.00016438,2]
[358975611,1745597438312,-12.23130489,0.00016438,2]
[358975612,1745597438321,-500.0,0.00016438,2]
[358975613,1745597438330,-500.0,0.00016438,2]
[358975614,1745597438340,-500.0,0.00016438,2]
[358975615,1745597438349,-163.55629813,0.00016438,2]
[358975616,1745597438358,-375.0,0.00016438,2]
[358975617,1745597438368,-672.29,0.00016438,2]
[358975618,1745597438377,-500.0,0.00016438,2]
[358975619,1745597438386,-500.0,0.00016438,2]
[358975620,1745597438398,-191.51279075,0.00016438,2]
[358975621,1745597438408,-500.0,0.00016438,2]
[358975622,1745597438418,-500.0,0.00016438,2]
[358975623,1745597438430,-500.0,0.00016438,2]
[358975624,1745597438441,-686.52,0.00016438,2]
[358975625,1745597438451,-1559.63,0.00016438,2]
[358975626,1745597438462,-500.0,0.00016438,2]
[358975627,1745597438472,-978.95,0.00016438,2]
[358975628,1745597438482,-500.0,0.00016438,2]
[358975629,1745597438491,-500.0,0.00016438,2]
[358975630,1745597438502,-500.0,0.00016438,2]
[358975631,1745597438515,-500.0,0.00016438,2]
[358975632,1745597438526,-500.0,0.00016438,2]
[358975633,1745597438536,-500.0,0.00016438,2]
[358975634,1745597438546,-520.83038148,0.00016438,2]
[358975635,1745597438555,-500.0,0.00016438,2]
[358975636,1745597438565,-788.26,0.00016438,2]
[358975637,1745597438574,-500.0,0.00016438,2]
[358975638,1745597438583,-575.91,0.00016438,2]
[358975639,1745597438593,-500.0,0.00016438,2]
[358975640,1745597438603,-500.0,0.00016438,2]
[358975641,1745597438614,-509.15203663,0.00016438,2]
[358975642,1745597438636,-500.0,0.00016438,2]
[358975643,1745597438647,-509.44629582,0.00016438,2]
[358975644,1745597438658,-500.0,0.00016438,2]
[358975645,1745597438668,-500.0,0.00016438,2]
[358975646,1745597438679,-5170.88,0.00016438,2]
[358975647,1745597438689,-587.46,0.00016438,2]
[358975648,1745597438699,-2295.91,0.00016438,2]
[358975649,1745597438708,-500.0,0.00016438,2]
[358975650,1745597438719,-500.0,0.00016438,2]
[358975651,1745597438729,-500.0,0.00016438,2]
[358975652,1745597438739,-151.12569465,0.00016438,2]
[358975653,1745597438749,-500.92771699,0.00016438,2]
[358975654,1745597438760,-500.0,0.00016438,2]
[358975655,1745597438770,-500.0,0.00016438,2]
[358975656,1745597438780,-500.0,0.00016438,2]
[358975657,1745597438790,-1237.78,0.00016438,2]
[358975658,1745597438800,-500.0,0.00016438,2]
[358975659,1745597438810,-500.0,0.00016438,2]
[358975660,1745597438821,-451.51960134,0.00016438,2]
[358975661,1745597438831,-376.90232768,0.00016438,2]
[358975662,1745597438845,-123.09767232,0.00016438,2]
[358975663,1745597438855,-504.6126223,0.00016438,2]
[358975664,1745597438865,-21.88503462,0.00016438,2]
[358975665,1745597438877,-478.11496538,0.00016438,2]
[358975666,1745597438887,-500.0,0.00016438,2]
[358975667,1745597438897,-242.72468269,0.00016438,2]
[358975668,1745597438909,-1208.99,0.00016438,2]
[358975669,1745597438920,-500.0,0.00016438,2]
[358975670,1745597438931,-505.63601766,0.00016438,2]
[358975671,1745597438941,-533.17,0.00016438,2]
[358975672,1745597438952,-899.99,0.00016438,2]
[358975673,1745597438962,-504.86264235,0.00016438,2]
[358975674,1745597438972,-274.17,0.00016438,2]
[358975675,1745597438982,-500.0,0.00016438,2]
[358975676,1745597438991,-848.56,0.00016438,2]
[358975677,1745597439002,-500.0,0.00016438,2]
[358975678,1745597439012,-500.0,0.00016438,2]
[358975679,1745597439022,-638.24,0.00016438,2]
[358975680,1745597439032,-500.0,0.00016438,2]
[358975681,1745597439042,-500.0,0.00016438,2]
[358975682,1745597439056,-500.0,0.00016438,2]
[358975683,1745597439065,-203.98676903,0.00016438,2]
[358975717,1745597443849,-296.01323097,0.00016438,2]
[358975720,1745597443859,-203.98676903,0.00016438,2]
[358975781,1745597831445,453.0139531,0.00014963,2]
[358975782,1745597953431,164.074209,0.00024,30]
[358975783,1745598057489,3371.6762556,0.00014455,2]
[358975830,1745598433092,-197.83608001,0.00015254,2]
[358975831,1745598433116,-300.0,0.0001545,2]
[358975832,1745598433137,-290.16985243,0.00015451,2]
[358975833,1745598433163,-445.18885687,0.00015451,2]
[358975834,1745598433184,-500.0,0.00015451,2]
[358975835,1745598433212,-500.0,0.00015451,2]
[358975836,1745598433240,-500.0,0.00015451,2]
[358975837,1745598433266,-229.96373795,0.00015451,2]
[358975838,1745598433292,-500.0,0.00015451,2]
[358975839,1745598433320,-500.0,0.00015451,2]
[358975840,1745598433351,-500.0,0.00015451,2]
[358975841,1745598433370,-384.26054091,0.00015451,2]
[358975842,1745598433393,-500.0,0.00015451,2]
[358975843,1745598433413,-391.9269793,0.00015451,2]
[358975844,1745598433437,-300.0,0.00015451,2]
[358975845,1745598433458,-1200.0,0.00015451,2]
[358975846,1745598433478,-8422.63111105,0.00015452,2]
[358975847,1745598433508,-327.1960002,0.00015452,2]
[358975848,1745598445104,-1189.49237923,0.00015355,2]
[358975902,1745598632709,-522.40161482,0.00015266,2]
[358975903,1745598632722,-351.63552655,0.00015266,2]
[358975904,1745598632734,-590.03155633,0.00015266,2]
[358975905,1745598632744,-150.0,0.00015455,2]
[358975906,1745598632754,-1007.0,0.00015456,2]
[358975907,1745598632764,-19232.0139552,0.00015457,2]
[358975908,1745598632774,-300.0,0.00016,2]
[358975909,1745598632789,-500.0,0.00016,2]
[358975910,1745598632799,-1300.91654489,0.00016328,2]
[358975911,1745598632809,-214.25355636,0.00016338,2]
[358975912,1745598632819,-4000.0,0.000164,2]
[358975913,1745598632829,-268.98237864,0.00016427,2]
[358975914,1745598632839,-500.0,0.00016427,2]
[358975915,1745598632850,-624.34888551,0.00016427,2]
[358975916,1745598632860,-187.90579963,0.00016427,2]
[358975917,1745598632869,-24687.47422397,0.00016428,2]
[358975918,1745598632886,-25312.52577603,0.00016428,2]
[358975919,1745598632896,-207.4,0.00016428,2]
[358975920,1745598632906,-1095.38,0.00016428,3]
[358975921,1745598632915,-547.69,0.00016428,3]
[358975922,1745598632925,-273.84,0.00016428,3]
[358975923,1745598632934,-821.57,0.00016428,3]
[358975924,1745598632945,-500.0,0.00016438,2]
[358975925,1745598632956,-500.0,0.00016438,2]
[358975926,1745598632966,-500.0,0.00016438,2]
[358975927,1745598632976,-500.0,0.00016438,2]
[358975928,1745598632987,-500.0,0.00016438,2]
[358975929,1745598632998,-361.9657732,0.00016438,2]
[358975930,1745598633008,-500.0,0.00016438,2]
[358975931,1745598633210,-500.0,0.00016438,2]
[358975932,1745598633220,-500.0,0.00016438,2]
[358975933,1745598633230,-500.0,0.00016438,2]
[358975934,1745598633240,-500.0,0.00016438,2]
[358975935,1745598633250,-500.0,0.00016438,2]
[358975936,1745598633259,-549.95,0.00016438,2]
[358975937,1745598633269,-500.0,0.00016438,2]
[358975938,1745598633285,-500.0,0.00016438,2]
[358975939,1745598633295,-194.84,0.00016438,2]
[358975940,1745598633305,-500.0,0.00016438,2]
[358975941,1745598633315,-500.0,0.00016438,2]
[358975942,1745598633325,-500.0,0.00016438,2]
[358975943,1745598633335,-500.0,0.00016438,2]
[358975944,1745598633345,-500.0,0.00016438,2]
[358975945,1745598633354,-500.0,0.00016438,2]
[358975946,1745598633365,-602.82890865,0.00016438,2]
[358975947,1745598633374,-500.0,0.00016438,2]
[358975948,1745598633384,-500.0,0.00016438,2]
[358975949,1745598633393,-500.0,0.00016438,2]
[358975950,1745598633403,-500.0,0.00016438,2]
[358975951,1745598633416,-500.0,0.00016438,2]
[358975952,1745598633426,-500.0,0.00016438,2]
[358975953,1745598633435,-500.0,0.00016438,2]
[358975954,1745598633444,-500.0,0.00016438,2]
[358975955,1745598633455,-500.0,0.00016438,2]
[358975956,1745598633464,-209.98422998,0.00016438,2]
[358975957,1745598633474,-500.0,0.00016438,2]
[358975958,1745598633483,-500.0,0.00016438,2]
[358975959,1745598633492,-500.0,0.00016438,2]
[358975960,1745598633503,-500.0,0.00016438,2]
[358975961,1745598633513,-455.59,0.00016438,2]
[358975962,1745598633523,-500.0,0.00016438,2]
[358975963,1745598633537,-500.0,0.00016438,2]
[358975964,1745598633547,-500.0,0.00016438,2]
[358975965,1745598633556,-702.37,0.00016438,2]
[358975966,1745598633565,-500.0,0.00016438,2]
[358975967,1745598633575,-500.0,0.00016438,2]
[358975968,1745598633584,-500.0,0.00016438,2]
[358975969,1745598633594,-500.0,0.00016438,2]
[358975970,1745598633603,-500.0,0.00016438,2]
[358975971,1745598633613,-721.01,0.00016438,2]
[358975972,1745598633624,-507.07975169,0.00016438,2]
[358975973,1745598633633,-500.0,0.00016438,2]
[358975974,1745598633643,-500.0,0.00016438,2]
[358975975,1745598633652,-500.0,0.00016438,2]
[358975976,1745598633662,-500.0,0.00016438,2]
[358975977,1745598633671,-503.06428678,0.00016438,2]
[358975978,1745598633681,-327.27635408,0.00016438,2]
[358975979,1745598633691,-500.0,0.00016438,2]
[358975980,1745598633700,-503.96840619,0.00016438,2]
[358975981,1745598633711,-938.16,0.00016438,2]
[358975982,1745598633720,-500.0,0.00016438,2]
[358975983,1745598633730,-500.0,0.00016438,2]
[358975984,1745598633739,-500.0,0.00016438,2]
[358975985,1745598633748,-500.0,0.00016438,2]
[358975986,1745598633758,-500.0,0.00016438,2]
[358975987,1745598633768,-500.0,0.00016438,2]
[358975988,1745598633777,-500.0,0.00016438,2]
[358975989,1745598633788,-302.79552595,0.00016438,2]
[358975990,1745598633798,-501.91034124,0.00016438,2]
[358975991,1745598633808,-500.0,0.00016438,2]
[358975992,1745598633818,-500.0,0.00016438,2]
[358975993,1745598633827,-502.07568429,0.00016438,2]
[358975994,1745598633837,-500.0,0.00016438,2]
[358975995,1745598633846,-500.0,0.00016438,2]
[358975996,1745598633856,-500.0,0.00016438,2]
[358975997,1745598633865,-500.0,0.00016438,2]
[358975998,1745598633876,-500.0,0.00016438,2]
[358975999,1745598633886,-500.0,0.00016438,2]
[358976000,1745598633896,-755.42,0.00016438,2]
[358976001,1745598633905,-500.0,0.00016438,2]
[358976002,1745598633914,-500.0,0.00016438,2]
[358976003,1745598633924,-500.0,0.00016438,2]
[358976004,1745598633934,-579.48512791,0.00016438,2]
[358976005,1745598633943,-500.0,0.00016438,2]
[358976006,1745598633953,-500.0,0.00016438,2]
[358976007,1745598633962,-500.0,0.00016438,2]
[358976008,1745598633972,-657.91,0.00016438,2]
[358976009,1745598633981,-300.15938147,0.00016438,2]
[358976010,1745598633990,-500.0,0.00016438,2]
[358976011,1745598634001,-500.0,0.00016438,2]
[358976012,1745598634011,-545.33,0.00016438,2]
[358976013,1745598634020,-1186.2,0.00016438,2]
[358976014,1745598634031,-451.14333863,0.00016438,2]
[358976015,1745598634041,-500.0,0.00016438,2]
[358976016,1745598634051,-500.0,0.00016438,2]
[358976017,1745598634060,-572.06073117,0.00016438,2]
[358976018,1745598634070,-500.0,0.00016438,2]
[358976019,1745598634079,-500.0,0.00016438,2]
[358976020,1745598634089,-500.0,0.00016438,2]
[358976021,1745598634098,-500.0,0.00016438,2]
[358976022,1745598634108,-500.0,0.00016438,2]
[358976023,1745598634118,-500.0,0.00016438,2]
[358976024,1745598634127,-500.0,0.00016438,2]
[358976025,1745598634137,-470.0,0.00016438,2]
[358976026,1745598634146,-819.93,0.00016438,2]
[358976027,1745598634156,-500.0,0.00016438,2]
[358976028,1745598634166,-500.0,0.00016438,2]
[358976029,1745598634176,-3646.07,0.00016438,2]
[358976030,1745598634185,-365.18056058,0.00016438,2]
[358976047,1745598638268,-500.0,0.00015455,2]
[358976048,1745598638277,-134.81943942,0.00016438,2]
[358976049,1745598638288,-500.0,0.00016438,2]
[358976050,1745598638298,-500.0,0.00016438,2]
[358976051,1745598638307,-500.0,0.00016438,2]
[358976052,1745598638316,-259.44708143,0.00016438,2]
[358976053,1745598638325,-500.0,0.00016438,2]
[358976054,1745598638335,-3180.41659855,0.00016438,2]
[358976055,1745598638346,-1293.38103466,0.00016438,2]
[358976056,1745598638358,-513.79236679,0.00016438,2]
[358976057,1745598638368,-500.0,0.00016438,2]
[358976058,1745598638377,-500.0,0.00016438,2]
[358976060,1745598638386,-500.0,0.00016438,2]
[358976062,1745598638396,-497.44468216,0.00016438,2]
[358976064,1745598638409,-2.55531784,0.00016438,2]
[358976066,1745598638418,-400.8966218,0.00016438,2]
[358976067,1745598638432,-99.1033782,0.00016438,2]
[358976068,1745598638442,-462.97100057,0.00016438,2]
[358976069,1745598638451,-500.0,0.00016438,2]
[358976070,1745598638461,-500.0,0.00016438,2]
[358976071,1745598638470,-500.0,0.00016438,2]
[358976072,1745598638479,-500.0,0.00016438,2]
[358976073,1745598638488,-367.92562123,0.00016438,2]
[358976074,1745598638501,-132.07437877,0.00016438,2]
[358976075,1745598638511,-1158.61,0.00016438,2]
[358976076,1745598638520,-1066.43,0.00016438,2]
[358976077,1745598638531,-500.0,0.00016438,2]
[358976078,1745598638541,-500.0,0.00016438,2]
[358976079,1745598638550,-500.0,0.00016438,2]
[358976080,1745598638559,-862.49,0.00016438,2]
[358976081,1745598638568,-376.12,0.00016438,2]
[358976082,1745598638577,-500.0,0.00016438,2]
[358976083,1745598638586,-510.96,0.00016438,2]
[358976084,1745598638598,-500.0,0.00016438,2]
[358976085,1745598638607,-500.0,0.00016438,2]
[358976086,1745598638616,-642.31123421,0.00016438,2]
[358976087,1745598638625,-632.39,0.00016438,2]
[358976088,1745598638634,-196.26803778,0.00016438,2]
[358976102,1745598646452,-303.73196222,0.00016438,2]
[358976103,1745598646463,-99.98900578,0.00016438,2]
[358976104,1745598646478,-400.01099422,0.00016438,2]
[358976105,1745598646489,-500.0,0.00016438,2]
[358976106,1745598646499,-500.0,0.00016438,2]
[358976107,1745598646509,-500.0,0.00016438,2]
[358976108,1745598646518,-506.21933944,0.00016438,2]
[358976110,1745598646528,-179.01,0.00016438,2]
[358976111,1745598646540,-279.93288829,0.00016438,2]
[358976182,1745599582363,1200.0,0.00015,2]
[358976188,1745599630122,-1000.0,0.00015355,2]
[358976189,1745599630145,-832.5837333,0.00015455,2]
[358976190,1745599630167,-261.15286719,0.00015998,2]
[358976191,1745599630188,-248.6023329,0.00015998,2]
[358976192,1745599630212,-239.33735911,0.00015998,2]
[358976193,1745599630233,-411.43150359,0.00015998,2]
[358976194,1745599630253,-1138.30197684,0.00016328,2]
[358976195,1745599630273,-300.0,0.00016399,2]
[358976196,1745599630293,-300.0,0.00016399,2]
[358976197,1745599630316,-300.0,0.00016399,2]
[358976198,1745599630337,-1084.80235937,0.000164,2]
[358976199,1745599637092,-736.90929541,0.000164,2]
[358976249,1745599782559,9759.01,0.00025,30]
[358976257,1745599832547,-996.0142297,0.00016328,2]
[358976259,1745599832557,-183.41682238,0.00016368,2]
[358976260,1745599832566,-300.0,0.00016399,2]
[358976261,1745599832575,-300.0,0.00016399,2]
[358976262,1745599832585,-28801.65203371,0.000164,2]
[358976263,1745599832594,-188.28766504,0.00016427,2]
[358976265,1745599832604,-437.04421986,0.00016427,2]
[358976267,1745599832613,-481.53405974,0.00016427,2]
[358976269,1745599832622,-207.4,0.00016428,2]
[358976271,1745599832632,-930.10484229,0.00016437,2]
[358976272,1745599832643,-500.0,0.00016438,2]
[358976273,1745599832653,-562.85708138,0.00016438,2]
[358976274,1745599832663,-500.0,0.00016438,2]
[358976275,1745599832673,-641.66925451,0.00016438,2]
[358976276,1745599832682,-500.0,0.00016438,2]
[358976277,1745599832692,-500.0,0.00016438,2]
[358976278,1745599832701,-500.0,0.00016438,2]
[358976279,1745599832711,-500.0,0.00016438,2]
[358976280,1745599832721,-500.0,0.00016438,2]
[358976281,1745599832730,-500.0,0.00016438,2]
[358976283,1745599832740,-500.0,0.00016438,2]
[358976285,1745599832750,-415.34073546,0.00016438,2]
[358976287,1745599832760,-500.0,0.00016438,2]
[358976289,1745599832769,-500.0,0.00016438,2]
[358976290,1745599832780,-550.95053919,0.00016438,2]
[358976291,1745599832792,-500.0,0.00016438,2]
[358976292,1745599832801,-500.0,0.00016438,2]
[358976293,1745599832810,-337.09592728,0.00016438,2]
[358976294,1745599832820,-280.94452331,0.00016438,2]
[358976295,1745599832830,-547.79,0.00016438,2]
[358976296,1745599832840,-185.76,0.00016438,2]
[358976297,1745599832850,-500.0,0.00016438,2]
[358976298,1745599832860,-153.34079584,0.00016438,2]
[358976299,1745599832870,-500.0,0.00016438,2]
[358976300,1745599832879,-500.0,0.00016438,2]
[358976301,1745599832888,-500.0,0.00016438,2]
[358976302,1745599832899,-500.0,0.00016438,2]
[358976303,1745599832908,-500.0,0.00016438,2]
[358976304,1745599832918,-500.0,0.00016438,2]
[358976305,1745599832928,-500.0,0.00016438,2]
[358976306,1745599832937,-234.33889374,0.00016438,2]
[358976307,1745599832949,-500.0,0.00016438,2]
[358976308,1745599832958,-693.94,0.00016438,2]
[358976309,1745599832967,-500.0,0.00016438,2]
[358976310,1745599832978,-500.0,0.00016438,2]
[358976311,1745599832987,-413.75,0.00016438,2]
[358976312,1745599832996,-500.0,0.00016438,2]
[358976313,1745599833006,-547.52,0.00016438,2]
[358976314,1745599833016,-690.97,0.00016438,2]
[358976315,1745599833025,-500.0,0.00016438,2]
[358976316,1745599833034,-500.0,0.00016438,2]
[358976317,1745599833044,-500.0,0.00016438,2]
[358976318,1745599833054,-500.0,0.00016438,2]
[358976319,1745599833064,-511.03,0.00016438,2]
[358976320,1745599833073,-500.0,0.00016438,2]
[358976321,1745599833082,-500.0,0.00016438,2]
[358976322,1745599833091,-500.0,0.00016438,2]
[358976323,1745599833101,-919.9,0.00016438,2]
[358976324,1745599833111,-500.0,0.00016438,2]
[358976325,1745599833121,-500.0,0.00016438,2]
[358976326,1745599833131,-500.0,0.00016438,2]
[358976327,1745599833141,-358.69,0.00016438,2]
[358976328,1745599833152,-500.0,0.00016438,2]
[358976329,1745599833162,-626.18,0.00016438,2]
[358976330,1745599833172,-630.5,0.00016438,2]
[358976331,1745599833181,-500.0,0.00016438,2]
[358976332,1745599833191,-500.0,0.00016438,2]
[358976333,1745599833201,-176.3,0.00016438,2]
[358976334,1745599833210,-1515.48,0.00016438,2]
[358976335,1745599833220,-455.34,0.00016438,2]
[358976336,1745599833231,-500.0,0.00016438,2]
[358976337,1745599833241,-500.0,0.00016438,2]
[358976338,1745599833250,-500.0,0.00016438,2]
[358976339,1745599833260,-500.0,0.00016438,2]
[358976340,1745599833270,-500.0,0.00016438,2]
[358976341,1745599833279,-500.0,0.00016438,2]
[358976342,1745599833288,-500.0,0.00016438,2]
[358976343,1745599833298,-411.92,0.00016438,2]
[358976344,1745599833309,-304.07051559,0.00016438,2]
[358976345,1745599833319,-500.0,0.00016438,2]
[358976346,1745599833328,-500.0,0.00016438,2]
[358976347,1745599833338,-500.0,0.00016438,2]
[358976348,1745599833348,-723.94,0.00016438,2]
[358976349,1745599833357,-1159.3,0.00016438,2]
[358976350,1745599833367,-500.0,0.00016438,2]
[358976351,1745599833377,-3513.44,0.00016438,2]
[358976352,1745599833387,-500.0,0.00016438,2]
[358976353,1745599833398,-500.0,0.00016438,2]
[358976354,1745599833408,-500.0,0.00016438,2]
[358976355,1745599833417,-500.0,0.00016438,2]
[358976356,1745599833427,-806.6,0.00016438,2]
[358976357,1745599833437,-500.0,0.00016438,2]
[358976358,1745599833447,-500.27728371,0.00016438,2]
[358976359,1745599833456,-500.0,0.00016438,2]
[358976360,1745599833466,-500.0,0.00016438,2]
[358976361,1745599833476,-500.0,0.00016438,2]
[358976362,1745599833485,-4779.77,0.00016438,2]
[358976363,1745599833495,-303.10841767,0.00016438,2]
[358976364,1745599833505,-500.0,0.00016438,2]
[358976365,1745599833514,-500.0,0.00016438,2]
[358976366,1745599833524,-155.16,0.00016438,2]
[358976367,1745599833533,-500.0,0.00016438,2]
[358976368,1745599833543,-500.0,0.00016438,2]
[358976369,1745599833552,-500.0,0.00016438,2]
[358976370,1745599833562,-500.0,0.00016438,2]
[358976371,1745599833571,-500.0,0.00016438,2]
[358976372,1745599833580,-500.0,0.00016438,2]